[Event "December 12 Early 2023"]
[Site "https://www.chess.com"]
[Date "2023.12.12"]
[Round "8"]
[White "Zhigalko, Sergei"]
[Black "Goh, Wei Ming Kevin"]
[Result "1-0"]
[Board "21"]
[TimeControl "180+1"]
[WhiteFideId "13502956"]
[BlackFideId "5800706"]
[WhiteElo "2945"]
[BlackElo "2771"]
[WhiteTeam "BLR"]
[BlackTeam "SGP"]
[WhiteClock "0:00:05"]
[BlackClock "0:00:02"]

1. e4 {[%clk 0:03:00]}  c5 {[%clk 0:02:55]} 2. Nf3 {[%clk 0:03:00]}  d6 {[%clk 0:02:56]} 3. d4 {[%clk 0:03:01]}  cxd4 {[%clk 0:02:57]} 4. Qxd4 {[%clk 0:03:02]}  Nc6 {[%clk 0:02:53]} 5. Bb5 {[%clk 0:03:01]}  a6 {[%clk 0:02:54]} 6. Bxc6+ {[%clk 0:03:02]}  bxc6 {[%clk 0:02:55]} 7. c4 {[%clk 0:03:02]}  e5 {[%clk 0:02:52]} 8. Qd3 {[%clk 0:03:02]}  f6 {[%clk 0:02:45]} 9. O-O {[%clk 0:02:57]}  Ne7 {[%clk 0:02:46]} 10. Nc3 {[%clk 0:02:53]}  Be6 {[%clk 0:02:44]} 11. Rd1 {[%clk 0:02:41]}  Ng6 {[%clk 0:02:39]} 12. c5 {[%clk 0:02:39]}  dxc5 {[%clk 0:02:33]} 13. Qc2 {[%clk 0:02:38]}  Qc7 {[%clk 0:02:32]} 14. Be3 {[%clk 0:02:38]}  Be7 {[%clk 0:02:28]} 15. Na4 {[%clk 0:02:36]}  c4 {[%clk 0:02:28]} 16. Nd2 {[%clk 0:02:15]}  O-O {[%clk 0:02:21]} 17. Nxc4 {[%clk 0:02:15]}  c5 {[%clk 0:02:07]} 18. Ncb6 {[%clk 0:01:34]}  Rab8 {[%clk 0:01:38]} 19. Nd5 {[%clk 0:01:32]}  Bxd5 {[%clk 0:01:22]} 20. exd5 {[%clk 0:01:21]}  Rfc8 {[%clk 0:01:05]} 21. Rac1 {[%clk 0:01:03]}  c4 {[%clk 0:00:51]} 22. Qf5 {[%clk 0:00:49]}  Qa5 {[%clk 0:00:38]} 23. Nb6 {[%clk 0:00:43]}  Rd8 {[%clk 0:00:38]} 24. d6 {[%clk 0:00:36]}  Bf8 {[%clk 0:00:39]} 25. Nxc4 {[%clk 0:00:24]}  Qxa2 {[%clk 0:00:38]} 26. d7 {[%clk 0:00:22]}  Qb3 {[%clk 0:00:29]} 27. Qe6+ {[%clk 0:00:21]}  Kh8 {[%clk 0:00:29]} 28. Bb6 {[%clk 0:00:21]}  Nf4 {[%clk 0:00:27]} 29. Qc6 {[%clk 0:00:12]}  Ne2+ {[%clk 0:00:27]} 30. Kh1 {[%clk 0:00:12]}  Nxc1 {[%clk 0:00:28]} 31. Rxc1 {[%clk 0:00:13]}  Rxb6 {[%clk 0:00:22]} 32. Qxb6 {[%clk 0:00:14]}  Qxb6 {[%clk 0:00:13]} 33. Nxb6 {[%clk 0:00:15]}  Kg8 {[%clk 0:00:11]} 34. Rc8 {[%clk 0:00:08]}  Be7 {[%clk 0:00:11]} 35. g3 {[%clk 0:00:03]}  Kf7 {[%clk 0:00:12]} 36. Kg2 {[%clk 0:00:04]}  Ke6 {[%clk 0:00:12]} 37. Kf3 {[%clk 0:00:03]}  f5 {[%clk 0:00:12]} 38. b3 {[%clk 0:00:04]}  Kd6 {[%clk 0:00:12]} 39. Ke2 {[%clk 0:00:03]}  g5 {[%clk 0:00:11]} 40. Kd3 {[%clk 0:00:03]}  h5 {[%clk 0:00:11]} 41. f3 {[%clk 0:00:03]}  Ke6 {[%clk 0:00:11]} 42. Kc4 {[%clk 0:00:03]}  Kd6 {[%clk 0:00:09]} 43. Kc3 {[%clk 0:00:03]}  Ke6 {[%clk 0:00:09]} 44. Kc2 {[%clk 0:00:03]}  Kd6 {[%clk 0:00:10]} 45. Kd3 {[%clk 0:00:04]}  Ke6 {[%clk 0:00:10]} 46. h3 {[%clk 0:00:04]}  Kd6 {[%clk 0:00:10]} 47. Ke3 {[%clk 0:00:05]}  Ke6 {[%clk 0:00:09]} 48. g4 {[%clk 0:00:05]}  hxg4 {[%clk 0:00:09]} 49. hxg4 {[%clk 0:00:05]}  Bf6 {[%clk 0:00:08]} 50. Kd3 {[%clk 0:00:04]}  e4+ {[%clk 0:00:06]} 51. fxe4 {[%clk 0:00:05]}  fxg4 {[%clk 0:00:07]} 52. Ke3 {[%clk 0:00:05]}  Be7 {[%clk 0:00:06]} 53. Rc6+ {[%clk 0:00:04]}  Kf7 {[%clk 0:00:06]} 54. e5 {[%clk 0:00:04]}  Rh8 {[%clk 0:00:05]} 55. e6+ {[%clk 0:00:04]}  Kf6 {[%clk 0:00:05]} 56. Nd5+ {[%clk 0:00:04]}  Ke5 {[%clk 0:00:04]} 57. Nxe7 {[%clk 0:00:05]}  Rh3+ {[%clk 0:00:04]} 58. Kd2 {[%clk 0:00:05]}  Rh2+ {[%clk 0:00:02]} 59. Kc3 {[%clk 0:00:05]} 1-0

[Event "December 12 Early 2023"]
[Site "https://www.chess.com"]
[Date "2023.12.12"]
[Round "8"]
[White "Kozak, Antoni"]
[Black "Indjic, Aleksandar"]
[Result "0-1"]
[Board "23"]
[TimeControl "180+1"]
[WhiteFideId "21832030"]
[BlackFideId "911925"]
[WhiteElo "2759"]
[BlackElo "2910"]
[WhiteTeam "POL"]
[BlackTeam "SRB"]
[WhiteClock "0:00:00"]
[BlackClock "0:01:29"]

1. Nf3 {[%clk 0:03:00]}  d5 {[%clk 0:02:54]} 2. e3 {[%clk 0:03:00]}  Nf6 {[%clk 0:02:54]} 3. c4 {[%clk 0:03:00]}  c6 {[%clk 0:02:53]} 4. Nc3 {[%clk 0:03:00]}  Nbd7 {[%clk 0:02:51]} 5. cxd5 {[%clk 0:02:52]}  cxd5 {[%clk 0:02:46]} 6. b3 {[%clk 0:02:48]}  e5 {[%clk 0:02:45]} 7. Bb2 {[%clk 0:02:48]}  a6 {[%clk 0:02:43]} 8. d4 {[%clk 0:02:30]}  e4 {[%clk 0:02:43]} 9. Ne5 {[%clk 0:02:30]}  Bd6 {[%clk 0:02:43]} 10. f4 {[%clk 0:02:24]}  exf3 {[%clk 0:02:42]} 11. Nxf3 {[%clk 0:02:24]}  O-O {[%clk 0:02:41]} 12. Bd3 {[%clk 0:02:23]}  Re8 {[%clk 0:02:41]} 13. O-O {[%clk 0:02:17]}  b5 {[%clk 0:02:35]} 14. Qd2 {[%clk 0:01:49]}  Bb7 {[%clk 0:02:34]} 15. Kh1 {[%clk 0:01:47]}  Ne4 {[%clk 0:02:26]} 16. Qe1 {[%clk 0:01:24]}  Re6 {[%clk 0:02:25]} 17. Bxe4 {[%clk 0:01:12]}  dxe4 {[%clk 0:02:25]} 18. Ng1 {[%clk 0:01:12]}  Rh6 {[%clk 0:02:20]} 19. Nh3 {[%clk 0:01:13]}  Nf6 {[%clk 0:02:16]} 20. Ne2 {[%clk 0:01:03]}  Ng4 {[%clk 0:02:15]} 21. Nef4 {[%clk 0:01:03]}  g5 {[%clk 0:02:15]} 22. Qe2 {[%clk 0:00:31]}  Nxh2 {[%clk 0:02:07]} 23. Kxh2 {[%clk 0:00:31]}  gxf4 {[%clk 0:02:08]} 24. exf4 {[%clk 0:00:31]}  Qh4 {[%clk 0:01:54]} 25. Qe3 {[%clk 0:00:25]}  Bd5 {[%clk 0:01:46]} 26. Bc3 {[%clk 0:00:21]}  Kh8 {[%clk 0:01:45]} 27. Be1 {[%clk 0:00:21]}  Qh5 {[%clk 0:01:46]} 28. Bg3 {[%clk 0:00:20]}  Rg8 {[%clk 0:01:45]} 29. Rac1 {[%clk 0:00:17]}  Rhg6 {[%clk 0:01:43]} 30. Be1 {[%clk 0:00:01]}  Rxg2+ {[%clk 0:01:40]} 31. Kh1 {[%clk 0:00:02]}  R8g3 {[%clk 0:01:29]} 32. Rc8+ {[%clk 0:00:00]}  Kg7 {[%clk 0:01:29]} 0-1

[Event "December 12 Early 2023"]
[Site "https://www.chess.com"]
[Date "2023.12.12"]
[Round "8"]
[White "Haug, Havard"]
[Black "Mitrabha, Guha"]
[Result "1-0"]
[Board "24"]
[TimeControl "180+1"]
[WhiteFideId "1547887"]
[BlackFideId "5057000"]
[WhiteElo "2755"]
[BlackElo "2909"]
[WhiteTeam "NOR"]
[BlackTeam "IND"]
[WhiteClock "0:00:11"]
[BlackClock "0:01:04"]

1. e4 {[%clk 0:03:00]}  c6 {[%clk 0:02:55]} 2. d4 {[%clk 0:02:57]}  d5 {[%clk 0:02:56]} 3. exd5 {[%clk 0:02:57]}  cxd5 {[%clk 0:02:56]} 4. Bd3 {[%clk 0:02:57]}  Nf6 {[%clk 0:02:57]} 5. h3 {[%clk 0:02:56]}  Nc6 {[%clk 0:02:58]} 6. Nf3 {[%clk 0:02:56]}  g6 {[%clk 0:02:58]} 7. O-O {[%clk 0:02:56]}  Bf5 {[%clk 0:02:58]} 8. Be2 {[%clk 0:02:53]}  e6 {[%clk 0:02:59]} 9. c3 {[%clk 0:02:49]}  h5 {[%clk 0:02:58]} 10. Ne5 {[%clk 0:02:47]}  Bd6 {[%clk 0:02:57]} 11. Bf4 {[%clk 0:02:43]}  Qc7 {[%clk 0:02:56]} 12. Re1 {[%clk 0:02:36]}  O-O {[%clk 0:02:55]} 13. Bf1 {[%clk 0:02:30]}  Ne4 {[%clk 0:02:48]} 14. f3 {[%clk 0:02:17]}  Bxe5 {[%clk 0:02:44]} 15. Bxe5 {[%clk 0:02:15]}  Nxe5 {[%clk 0:02:42]} 16. fxe4 {[%clk 0:02:15]}  dxe4 {[%clk 0:02:38]} 17. dxe5 {[%clk 0:02:14]}  Qb6+ {[%clk 0:02:38]} 18. Qd4 {[%clk 0:02:02]}  Qxb2 {[%clk 0:02:39]} 19. Nd2 {[%clk 0:02:02]}  Rfd8 {[%clk 0:02:36]} 20. Nc4 {[%clk 0:02:02]}  Qc2 {[%clk 0:02:31]} 21. Nd6 {[%clk 0:01:56]}  Rac8 {[%clk 0:02:30]} 22. Rac1 {[%clk 0:01:45]}  Qxa2 {[%clk 0:02:29]} 23. Qe3 {[%clk 0:01:43]}  Rc6 {[%clk 0:02:28]} 24. Qg5 {[%clk 0:01:38]}  Rf8 {[%clk 0:02:25]} 25. g4 {[%clk 0:01:32]}  hxg4 {[%clk 0:02:23]} 26. hxg4 {[%clk 0:01:31]}  Qa5 {[%clk 0:02:18]} 27. gxf5 {[%clk 0:01:29]}  Qxe5 {[%clk 0:02:18]} 28. Nxe4 {[%clk 0:01:27]}  exf5 {[%clk 0:02:18]} 29. Ng3 {[%clk 0:01:22]}  Qc5+ {[%clk 0:02:18]} 30. Kh1 {[%clk 0:01:18]}  Kg7 {[%clk 0:02:17]} 31. Nh5+ {[%clk 0:01:17]}  Kh7 {[%clk 0:02:16]} 32. Bg2 {[%clk 0:01:11]}  Rb6 {[%clk 0:02:08]} 33. Ng3 {[%clk 0:00:36]}  Kg7 {[%clk 0:02:07]} 34. Nh5+ {[%clk 0:00:25]}  Kh7 {[%clk 0:02:06]} 35. Re3 {[%clk 0:00:25]}  gxh5 {[%clk 0:02:03]} 36. Rh3 {[%clk 0:00:24]}  Rh6 {[%clk 0:02:00]} 37. Rf1 {[%clk 0:00:22]}  Rg8 {[%clk 0:01:58]} 38. Qxf5+ {[%clk 0:00:22]}  Qxf5 {[%clk 0:01:58]} 39. Rxf5 {[%clk 0:00:23]}  Kg7 {[%clk 0:01:53]} 40. Bxb7 {[%clk 0:00:21]}  Rb8 {[%clk 0:01:53]} 41. Bd5 {[%clk 0:00:18]}  Rb1+ {[%clk 0:01:50]} 42. Kg2 {[%clk 0:00:18]}  Rg6+ {[%clk 0:01:50]} 43. Kf3 {[%clk 0:00:17]}  Rf1+ {[%clk 0:01:49]} 44. Ke4 {[%clk 0:00:18]}  Rg4+ {[%clk 0:01:46]} 45. Ke5 {[%clk 0:00:17]}  f6+ {[%clk 0:01:27]} 46. Ke6 {[%clk 0:00:17]}  Re1+ {[%clk 0:01:27]} 47. Kd6 {[%clk 0:00:16]}  h4 {[%clk 0:01:28]} 48. Rh5 {[%clk 0:00:14]}  Rd1 {[%clk 0:01:14]} 49. R5xh4 {[%clk 0:00:12]}  Rg5 {[%clk 0:01:13]} 50. c4 {[%clk 0:00:12]}  a5 {[%clk 0:01:12]} 51. Ra3 {[%clk 0:00:11]}  f5 {[%clk 0:01:11]} 52. Rxa5 {[%clk 0:00:11]}  Kf6 {[%clk 0:01:12]} 53. Ra7 {[%clk 0:00:12]}  Rg3 {[%clk 0:01:06]} 54. Rf7+ {[%clk 0:00:10]}  Kg6 {[%clk 0:01:07]} 55. Rhh7 {[%clk 0:00:08]}  Ra3 {[%clk 0:01:04]} 56. Rhg7+ {[%clk 0:00:09]}  Kh6 {[%clk 0:01:04]} 57. Rg2 {[%clk 0:00:08]}  Ra6+ {[%clk 0:01:03]} 58. Ke5 {[%clk 0:00:09]}  Re1+ {[%clk 0:01:03]} 59. Kxf5 {[%clk 0:00:09]}  Rf1+ {[%clk 0:01:04]} 60. Ke5 {[%clk 0:00:10]}  Re1+ {[%clk 0:01:04]} 61. Kd4 {[%clk 0:00:10]}  Rd1+ {[%clk 0:01:05]} 62. Kc5 {[%clk 0:00:11]}  Ra5+ {[%clk 0:01:06]} 63. Kb4 {[%clk 0:00:11]}  Raa1 {[%clk 0:01:05]} 64. Rf6+ {[%clk 0:00:11]}  Kh5 {[%clk 0:01:04]} 65. Bf3+ {[%clk 0:00:11]} 1-0

[Event "December 12 Early 2023"]
[Site "https://www.chess.com"]
[Date "2023.12.12"]
[Round "8"]
[White "Mindlin, Alon"]
[Black "Harsha Bharathakoti"]
[Result "0-1"]
[Board "27"]
[TimeControl "180+1"]
[WhiteFideId "2800071"]
[BlackFideId "5078776"]
[WhiteElo "2740"]
[BlackElo "2896"]
[WhiteTeam "ISR"]
[BlackTeam "IND"]
[WhiteClock "0:01:23"]
[BlackClock "0:01:27"]

1. d4 {[%clk 0:02:59]}  d5 {[%clk 0:02:56]} 2. c4 {[%clk 0:02:59]}  e6 {[%clk 0:02:56]} 3. Nc3 {[%clk 0:02:59]}  a6 {[%clk 0:02:57]} 4. c5 {[%clk 0:02:50]}  b6 {[%clk 0:02:54]} 5. cxb6 {[%clk 0:02:50]}  c5 {[%clk 0:02:54]} 6. e3 {[%clk 0:02:30]}  Nd7 {[%clk 0:02:52]} 7. Nf3 {[%clk 0:02:30]}  Qxb6 {[%clk 0:02:46]} 8. Bd3 {[%clk 0:02:30]}  Ngf6 {[%clk 0:02:46]} 9. O-O {[%clk 0:02:30]}  Bb7 {[%clk 0:02:41]} 10. b3 {[%clk 0:02:28]}  cxd4 {[%clk 0:02:05]} 11. exd4 {[%clk 0:02:22]}  Bd6 {[%clk 0:02:02]} 12. Bb2 {[%clk 0:02:15]}  O-O {[%clk 0:02:00]} 13. Na4 {[%clk 0:02:15]}  Qd8 {[%clk 0:01:57]} 14. Ne5 {[%clk 0:02:11]}  Ne4 {[%clk 0:01:57]} 15. Nxd7 {[%clk 0:02:09]}  Qxd7 {[%clk 0:01:55]} 16. Nb6 {[%clk 0:02:09]}  Bxh2+ {[%clk 0:01:52]} 17. Kh1 {[%clk 0:02:09]}  Qd8 {[%clk 0:01:52]} 18. Bxe4 {[%clk 0:01:53]}  Qh4 {[%clk 0:01:28]} 19. Qf3 {[%clk 0:01:23]}  Bg3+ {[%clk 0:01:27]} 0-1

[Event "December 12 Early 2023"]
[Site "https://www.chess.com"]
[Date "2023.12.12"]
[Round "8"]
[White "Makhnev, Denis"]
[Black "Demchenko, Anton"]
[Result "0-1"]
[Board "30"]
[TimeControl "180+1"]
[WhiteFideId "13707647"]
[BlackFideId "4160258"]
[WhiteElo "2702"]
[BlackElo "2883"]
[WhiteTeam "KAZ"]
[BlackTeam "SLO"]
[WhiteClock "0:00:02"]
[BlackClock "0:00:18"]

1. Nf3 {[%clk 0:03:00]}  Nf6 {[%clk 0:02:59]} 2. c4 {[%clk 0:03:00]}  d6 {[%clk 0:03:00]} 3. Nc3 {[%clk 0:03:00]}  e5 {[%clk 0:02:59]} 4. g3 {[%clk 0:02:59]}  g6 {[%clk 0:02:57]} 5. Bg2 {[%clk 0:02:59]}  Bg7 {[%clk 0:02:57]} 6. O-O {[%clk 0:02:59]}  O-O {[%clk 0:02:58]} 7. Rb1 {[%clk 0:02:58]}  a5 {[%clk 0:02:55]} 8. a3 {[%clk 0:02:57]}  h6 {[%clk 0:02:55]} 9. b4 {[%clk 0:02:57]}  axb4 {[%clk 0:02:56]} 10. axb4 {[%clk 0:02:57]}  Be6 {[%clk 0:02:56]} 11. d3 {[%clk 0:02:57]}  Nbd7 {[%clk 0:02:54]} 12. Bb2 {[%clk 0:02:53]}  c6 {[%clk 0:02:54]} 13. Ra1 {[%clk 0:02:52]}  Qc7 {[%clk 0:02:50]} 14. Qd2 {[%clk 0:02:46]}  Rxa1 {[%clk 0:02:35]} 15. Rxa1 {[%clk 0:02:45]}  d5 {[%clk 0:02:36]} 16. c5 {[%clk 0:02:29]}  d4 {[%clk 0:02:16]} 17. Ne4 {[%clk 0:02:21]}  Nxe4 {[%clk 0:02:16]} 18. dxe4 {[%clk 0:02:22]}  b6 {[%clk 0:02:16]} 19. e3 {[%clk 0:02:10]}  bxc5 {[%clk 0:02:15]} 20. bxc5 {[%clk 0:02:10]}  dxe3 {[%clk 0:02:08]} 21. Qxe3 {[%clk 0:02:11]}  Rb8 {[%clk 0:02:07]} 22. Bc3 {[%clk 0:02:05]}  Bf8 {[%clk 0:01:48]} 23. Rc1 {[%clk 0:01:50]}  Kh7 {[%clk 0:01:41]} 24. Bd2 {[%clk 0:01:40]}  Rb5 {[%clk 0:01:31]} 25. Bf1 {[%clk 0:01:34]}  Rb3 {[%clk 0:01:13]} 26. Rc3 {[%clk 0:00:59]}  Rb1 {[%clk 0:01:13]} 27. Kg2 {[%clk 0:00:54]}  Qc8 {[%clk 0:01:13]} 28. Bc4 {[%clk 0:00:47]}  Qe8 {[%clk 0:00:48]} 29. Qd3 {[%clk 0:00:27]}  Ra1 {[%clk 0:00:39]} 30. Be3 {[%clk 0:00:27]}  Ra4 {[%clk 0:00:35]} 31. Bb3 {[%clk 0:00:22]}  Ra5 {[%clk 0:00:32]} 32. Bxe6 {[%clk 0:00:18]}  Qxe6 {[%clk 0:00:33]} 33. Qd2 {[%clk 0:00:14]}  Rb5 {[%clk 0:00:30]} 34. Rd3 {[%clk 0:00:13]}  Nxc5 {[%clk 0:00:27]} 35. Rd8 {[%clk 0:00:12]}  Nxe4 {[%clk 0:00:21]} 36. Qd3 {[%clk 0:00:02]}  Rd5 {[%clk 0:00:18]} 0-1

[Event "December 12 Early 2023"]
[Site "https://www.chess.com"]
[Date "2023.12.12"]
[Round "8"]
[White "Corrales Jimenez, Fidel"]
[Black "Kokoszczynski, Jan"]
[Result "0-1"]
[Board "32"]
[TimeControl "180+1"]
[WhiteFideId "3506690"]
[BlackFideId "1174460"]
[WhiteElo "2848"]
[BlackElo "2642"]
[WhiteTeam "USA"]
[BlackTeam "POL"]
[WhiteClock "0:00:12"]
[BlackClock "0:00:09"]

1. e4 {[%clk 0:03:00]}  c5 {[%clk 0:02:58]} 2. Nf3 {[%clk 0:03:00]}  d6 {[%clk 0:02:58]} 3. d4 {[%clk 0:03:01]}  cxd4 {[%clk 0:02:58]} 4. Nxd4 {[%clk 0:03:02]}  Nf6 {[%clk 0:02:59]} 5. Nc3 {[%clk 0:03:02]}  g6 {[%clk 0:02:59]} 6. Be3 {[%clk 0:03:01]}  Bg7 {[%clk 0:02:59]} 7. Qd2 {[%clk 0:03:01]}  O-O {[%clk 0:02:58]} 8. f3 {[%clk 0:03:02]}  Nc6 {[%clk 0:02:58]} 9. O-O-O {[%clk 0:03:02]}  d5 {[%clk 0:02:53]} 10. exd5 {[%clk 0:03:02]}  Nxd5 {[%clk 0:02:53]} 11. Nxc6 {[%clk 0:03:02]}  bxc6 {[%clk 0:02:54]} 12. Bd4 {[%clk 0:03:03]}  e5 {[%clk 0:02:54]} 13. Bc5 {[%clk 0:03:03]}  Re8 {[%clk 0:02:55]} 14. Ne4 {[%clk 0:02:57]}  Qc7 {[%clk 0:02:37]} 15. g4 {[%clk 0:02:57]}  Be6 {[%clk 0:02:32]} 16. h4 {[%clk 0:02:57]}  h6 {[%clk 0:02:32]} 17. g5 {[%clk 0:02:57]}  h5 {[%clk 0:02:32]} 18. Bc4 {[%clk 0:02:57]}  Rad8 {[%clk 0:02:31]} 19. Bb3 {[%clk 0:02:54]}  Nf4 {[%clk 0:02:18]} 20. Bd6 {[%clk 0:02:45]}  Qb6 {[%clk 0:02:05]} 21. Kb1 {[%clk 0:02:30]}  Bd5 {[%clk 0:01:50]} 22. c4 {[%clk 0:02:11]}  Bxe4+ {[%clk 0:01:37]} 23. fxe4 {[%clk 0:02:12]}  c5 {[%clk 0:01:38]} 24. Ba4 {[%clk 0:00:59]}  Re6 {[%clk 0:01:37]} 25. Bxc5 {[%clk 0:01:00]}  Rxd2 {[%clk 0:01:38]} 26. Bxb6 {[%clk 0:01:00]}  Rxd1+ {[%clk 0:01:37]} 27. Rxd1 {[%clk 0:01:01]}  axb6 {[%clk 0:01:33]} 28. Rd2 {[%clk 0:00:59]}  f6 {[%clk 0:01:30]} 29. c5 {[%clk 0:00:56]}  bxc5 {[%clk 0:00:45]} 30. Bb3 {[%clk 0:00:56]}  fxg5 {[%clk 0:00:46]} 31. a4 {[%clk 0:00:50]}  c4 {[%clk 0:00:35]} 32. Bxc4 {[%clk 0:00:50]}  gxh4 {[%clk 0:00:31]} 33. a5 {[%clk 0:00:49]}  Bf8 {[%clk 0:00:32]} 34. Rd8 {[%clk 0:00:19]}  Kg7 {[%clk 0:00:32]} 35. Bxe6 {[%clk 0:00:07]}  Nxe6 {[%clk 0:00:32]} 36. Rc8 {[%clk 0:00:07]}  Bc5 {[%clk 0:00:29]} 37. a6 {[%clk 0:00:08]}  h3 {[%clk 0:00:22]} 38. Rxc5 {[%clk 0:00:03]}  Nxc5 {[%clk 0:00:23]} 39. a7 {[%clk 0:00:04]}  h2 {[%clk 0:00:24]} 40. a8=Q {[%clk 0:00:05]}  h1=Q+ {[%clk 0:00:24]} 41. Ka2 {[%clk 0:00:06]}  Qxe4 {[%clk 0:00:24]} 42. Qa7+ {[%clk 0:00:06]}  Nb7 {[%clk 0:00:25]} 43. Qb6 {[%clk 0:00:06]}  h4 {[%clk 0:00:23]} 44. Qc7+ {[%clk 0:00:06]}  Kh6 {[%clk 0:00:23]} 45. Qe7 {[%clk 0:00:07]}  Qa4+ {[%clk 0:00:21]} 46. Kb1 {[%clk 0:00:07]}  Qd1+ {[%clk 0:00:22]} 47. Ka2 {[%clk 0:00:08]}  Qd5+ {[%clk 0:00:22]} 48. b3 {[%clk 0:00:08]}  Nd6 {[%clk 0:00:14]} 49. Qxh4+ {[%clk 0:00:07]}  Kg7 {[%clk 0:00:14]} 50. Qe7+ {[%clk 0:00:06]}  Nf7 {[%clk 0:00:09]} 51. Qh4 {[%clk 0:00:03]}  e4 {[%clk 0:00:08]} 52. Qe1 {[%clk 0:00:02]}  Nd6 {[%clk 0:00:07]} 53. Qc3+ {[%clk 0:00:02]}  Kf7 {[%clk 0:00:07]} 54. Qc7+ {[%clk 0:00:02]}  Kf6 {[%clk 0:00:06]} 55. Qc3+ {[%clk 0:00:03]}  Qe5 {[%clk 0:00:06]} 56. Qe3 {[%clk 0:00:02]}  Nb5 {[%clk 0:00:04]} 57. Qb6+ {[%clk 0:00:02]}  Kf5 {[%clk 0:00:05]} 58. Qf2+ {[%clk 0:00:02]}  Ke6 {[%clk 0:00:05]} 59. Qb6+ {[%clk 0:00:03]}  Nd6 {[%clk 0:00:05]} 60. Qe3 {[%clk 0:00:03]}  Qa5+ {[%clk 0:00:06]} 61. Kb2 {[%clk 0:00:03]}  Qd5 {[%clk 0:00:06]} 62. Ka2 {[%clk 0:00:04]}  Qd3 {[%clk 0:00:06]} 63. Qg5 {[%clk 0:00:03]}  e3 {[%clk 0:00:05]} 64. Qg4+ {[%clk 0:00:04]}  Qf5 {[%clk 0:00:05]} 65. Qe2 {[%clk 0:00:03]}  Qe5 {[%clk 0:00:05]} 66. Qg4+ {[%clk 0:00:03]}  Kf7 {[%clk 0:00:05]} 67. Qf3+ {[%clk 0:00:03]}  Kg7 {[%clk 0:00:05]} 68. Qe2 {[%clk 0:00:04]}  Nb5 {[%clk 0:00:05]} 69. Qe1 {[%clk 0:00:01]}  e2 {[%clk 0:00:04]} 70. b4 {[%clk 0:00:02]}  Nd4 {[%clk 0:00:04]} 71. Kb2 {[%clk 0:00:02]}  Nf3+ {[%clk 0:00:04]} 72. Qc3 {[%clk 0:00:02]}  Qxc3+ {[%clk 0:00:04]} 73. Kxc3 {[%clk 0:00:03]}  e1=Q+ {[%clk 0:00:05]} 74. Kc4 {[%clk 0:00:03]}  Qxb4+ {[%clk 0:00:05]} 75. Kxb4 {[%clk 0:00:04]}  Kf6 {[%clk 0:00:06]} 76. Kc3 {[%clk 0:00:03]}  Kf5 {[%clk 0:00:07]} 77. Kd3 {[%clk 0:00:04]}  Kf4 {[%clk 0:00:07]} 78. Ke2 {[%clk 0:00:05]}  g5 {[%clk 0:00:08]} 79. Kf2 {[%clk 0:00:06]}  g4 {[%clk 0:00:09]} 80. Kg2 {[%clk 0:00:06]}  Ne5 {[%clk 0:00:10]} 81. Kf2 {[%clk 0:00:07]}  Ng6 {[%clk 0:00:11]} 82. Kg2 {[%clk 0:00:08]}  Ne7 {[%clk 0:00:12]} 83. Kf2 {[%clk 0:00:08]}  Nf5 {[%clk 0:00:13]} 84. Kg2 {[%clk 0:00:09]}  Ne3+ {[%clk 0:00:13]} 85. Kf2 {[%clk 0:00:10]}  g3+ {[%clk 0:00:14]} 86. Kg1 {[%clk 0:00:11]}  Kf3 {[%clk 0:00:13]} 87. Kh1 {[%clk 0:00:10]}  Nd5 {[%clk 0:00:14]} 88. Kg1 {[%clk 0:00:11]}  Nf4 {[%clk 0:00:14]} 89. Kf1 {[%clk 0:00:12]}  g2+ {[%clk 0:00:13]} 90. Ke1 {[%clk 0:00:13]}  Ke3 {[%clk 0:00:12]} 91. Kd1 {[%clk 0:00:13]}  Kd3 {[%clk 0:00:11]} 92. Kc1 {[%clk 0:00:12]}  Kc3 {[%clk 0:00:11]} 93. Kb1 {[%clk 0:00:12]}  g1=Q+ {[%clk 0:00:08]} 94. Ka2 {[%clk 0:00:13]}  Qh1 {[%clk 0:00:08]} 95. Ka3 {[%clk 0:00:12]}  Qa8# {[%clk 0:00:09]} 0-1

[Event "December 12 Early 2023"]
[Site "https://www.chess.com"]
[Date "2023.12.12"]
[Round "8"]
[White "Sahib Singh"]
[Black "Finek, Vaclav"]
[Result "1-0"]
[Board "34"]
[TimeControl "180+1"]
[WhiteFideId "25618342"]
[BlackFideId "23718293"]
[WhiteElo "2626"]
[BlackElo "2846"]
[WhiteTeam "IND"]
[BlackTeam "CZE"]
[WhiteClock "0:01:20"]
[BlackClock "0:00:14"]

1. e4 {[%clk 0:03:00]}  c5 {[%clk 0:02:59]} 2. Nf3 {[%clk 0:03:00]}  g6 {[%clk 0:02:54]} 3. d4 {[%clk 0:02:55]}  cxd4 {[%clk 0:02:55]} 4. Nxd4 {[%clk 0:02:56]}  Bg7 {[%clk 0:02:55]} 5. c4 {[%clk 0:02:56]}  Nc6 {[%clk 0:02:55]} 6. Be3 {[%clk 0:02:55]}  Qb6 {[%clk 0:02:55]} 7. Nb3 {[%clk 0:02:37]}  Qd8 {[%clk 0:02:53]} 8. Nc3 {[%clk 0:02:37]}  Bxc3+ {[%clk 0:02:52]} 9. bxc3 {[%clk 0:02:37]}  Nf6 {[%clk 0:02:53]} 10. f3 {[%clk 0:02:35]}  d6 {[%clk 0:02:53]} 11. Be2 {[%clk 0:02:34]}  O-O {[%clk 0:02:52]} 12. g4 {[%clk 0:02:33]}  b6 {[%clk 0:02:48]} 13. Bh6 {[%clk 0:02:32]}  Re8 {[%clk 0:02:47]} 14. h4 {[%clk 0:02:32]}  Be6 {[%clk 0:02:42]} 15. h5 {[%clk 0:02:32]}  Ne5 {[%clk 0:02:33]} 16. hxg6 {[%clk 0:02:29]}  fxg6 {[%clk 0:02:31]} 17. Nd4 {[%clk 0:02:08]}  Bxc4 {[%clk 0:02:24]} 18. Bxc4+ {[%clk 0:02:07]}  Nxc4 {[%clk 0:02:24]} 19. g5 {[%clk 0:02:08]}  d5 {[%clk 0:01:57]} 20. gxf6 {[%clk 0:02:07]}  exf6 {[%clk 0:01:56]} 21. Qb3 {[%clk 0:02:03]}  Rc8 {[%clk 0:01:49]} 22. O-O-O {[%clk 0:02:03]}  Rc5 {[%clk 0:01:09]} 23. Nc2 {[%clk 0:01:33]}  Na5 {[%clk 0:00:55]} 24. Qa4 {[%clk 0:01:33]}  Re5 {[%clk 0:00:22]} 25. Rxd5 {[%clk 0:01:28]}  Rexd5 {[%clk 0:00:14]} 26. exd5 {[%clk 0:01:29]}  Rxd5 {[%clk 0:00:15]} 27. Re1 {[%clk 0:01:24]}  Kf7 {[%clk 0:00:15]} 28. Qe4 {[%clk 0:01:21]}  Qd7 {[%clk 0:00:15]} 29. Qb4 {[%clk 0:01:20]}  Nc6 {[%clk 0:00:14]} 30. Qf8# {[%clk 0:01:20]} 1-0

[Event "December 12 Early 2023"]
[Site "https://www.chess.com"]
[Date "2023.12.12"]
[Round "8"]
[White "Miladinovic, Igor"]
[Black "Vlassov, Nikolai"]
[Result "0-1"]
[Board "35"]
[TimeControl "180+1"]
[WhiteFideId "4203380"]
[BlackFideId "4103360"]
[WhiteElo "2825"]
[BlackElo "2623"]
[WhiteTeam "SRB"]
[BlackTeam "FID"]
[WhiteClock "0:00:00"]
[BlackClock "0:01:44"]

1. d4 {[%clk 0:03:00]}  Nf6 {[%clk 0:02:59]} 2. Bg5 {[%clk 0:03:00]}  e6 {[%clk 0:02:59]} 3. e3 {[%clk 0:03:00]}  h6 {[%clk 0:02:59]} 4. Bh4 {[%clk 0:02:59]}  c5 {[%clk 0:02:59]} 5. c3 {[%clk 0:02:59]}  b6 {[%clk 0:02:59]} 6. Nd2 {[%clk 0:02:59]}  Bb7 {[%clk 0:03:00]} 7. Ngf3 {[%clk 0:03:00]}  Be7 {[%clk 0:03:00]} 8. Bxf6 {[%clk 0:03:00]}  Bxf6 {[%clk 0:03:00]} 9. Bd3 {[%clk 0:03:01]}  d6 {[%clk 0:02:57]} 10. Qe2 {[%clk 0:02:55]}  Nd7 {[%clk 0:02:57]} 11. h4 {[%clk 0:02:55]}  Qc7 {[%clk 0:02:57]} 12. g4 {[%clk 0:02:54]}  O-O-O {[%clk 0:02:43]} 13. Ba6 {[%clk 0:02:51]}  Kb8 {[%clk 0:02:41]} 14. Bxb7 {[%clk 0:02:50]}  Qxb7 {[%clk 0:02:41]} 15. a4 {[%clk 0:02:45]}  cxd4 {[%clk 0:02:40]} 16. exd4 {[%clk 0:02:33]}  e5 {[%clk 0:02:39]} 17. dxe5 {[%clk 0:02:30]}  Nxe5 {[%clk 0:02:31]} 18. O-O-O {[%clk 0:02:25]}  Nxg4 {[%clk 0:02:29]} 19. Rhg1 {[%clk 0:02:20]}  Rhe8 {[%clk 0:02:21]} 20. Qf1 {[%clk 0:02:16]}  h5 {[%clk 0:02:20]} 21. Kb1 {[%clk 0:01:59]}  Qc6 {[%clk 0:02:16]} 22. a5 {[%clk 0:01:28]}  bxa5 {[%clk 0:02:11]} 23. Ne1 {[%clk 0:01:20]}  Ka8 {[%clk 0:02:09]} 24. Nc2 {[%clk 0:01:19]}  Rb8 {[%clk 0:02:07]} 25. Qc4 {[%clk 0:01:11]}  Qxc4 {[%clk 0:02:02]} 26. Nxc4 {[%clk 0:01:12]}  Bxc3 {[%clk 0:01:54]} 27. Rxd6 {[%clk 0:00:00]}  Rec8 {[%clk 0:01:44]} 0-1